[Event "Landesliga A"]
[Site "Uttendorf"]
[Date "2005.10.15"]
[Round "?"]
[White "Grundner, Alois"]
[Black "Hasanovic, Nurija"]
[Result "1/2-1/2"]
[ECO "D21"]
[WhiteElo "1855"]
[BlackElo "1990"]
[Annotator "Fritz 8 (15s)"]
[PlyCount "125"]
[TimeControl "300"]

{96MB, OEMComputer D21: Angenommenes Damengambit} 1. d4 d5 2. Nf3 a6 3. c4 dxc4
4. a4 c5 5. e3 Bg4 6. Bxc4 e6 {Der Gegner darf nicht nach d5} 7. O-O cxd4 8.
Qxd4 Bxf3 9. Qxd8+ Kxd8 10. gxf3 Nc6 11. Nc3 Nf6 12. e4 Bb4 13. Be3 Rc8 14.
Bb6+ Ke7 15. Rac1 Nd7 16. Be3 Nce5 17. Be2 Bxc3 (17... Rhd8 $142 $5 $15 {ist
bedenkenswert}) 18. Rxc3 $14 Rxc3 19. bxc3 Rc8 20. Rb1 Rc7 21. Bd4 f6 22. Kf1
Nf7 23. Ke1 e5 24. Be3 Nd6 25. Rb3 Nc5 26. Ra3 g5 27. Kd2 Ne6 28. Rb3 Nc5 (
28... f5 29. exf5 Nxf5 30. Rb4 $15) 29. Ra3 $17 h6 30. Kc2 Ne6 31. Kd2 (31. Rb3
f5 $15) 31... Kd7 32. Rb3 Nd8 (32... Nc5 $5 33. Rb4 a5 34. Bxc5 Rxc5 $17) 33.
Bb6 Rc6 34. Bf1 Ne6 35. Be3 (35. a5 f5 36. Rb4 Ke7 $15) 35... Kc7 (35... Nc5
36. Ra3 $17) 36. Bd3 Nc5 37. Bxc5 Rxc5 38. Kc2 h5 39. Rb1 h4 40. Kb3 b5 41. Kb4
Kb6 (41... Rc6 42. axb5 Nxb5 43. Rb3 $15) 42. a5+ Kc6 43. Rd1 (43. Ra1 Nb7 $11)
43... Nc4 (43... Nb7 44. Be2 $15) 44. Bf1 $11 Nxa5 $4 {gibt den Vorteil aus
der Hand} (44... Nd6 45. Bd3 $11) 45. Kxa5 (45. Ra1 $142 {und Weiß bekommt die
Oberhand} Kb6 46. Rxa5 $18) 45... Rxc3 $11 46. Bd3 Kc5 47. Kxa6 Ra3+ (47... b4
$142 $5 $11 {damit wäre Schwarz im Spiel geblieben}) 48. Kb7 $16 b4 49. Be2 (
49. Rc1+ $5 Kd6 50. Be2 $16) 49... b3 $11 50. Rc1+ Kd6 (50... Kb4 $142 {sieht
noch spielbar aus} 51. Rc4+ Ka5 $11) 51. Rc6+ Ke7 52. Rb6 Ra2 53. Bc4 Rxf2 54.
Re6+ (54. Bxb3 Rxh2 55. Kc6 h3 56. Rb7+ Kf8 $16) 54... Kd7 (54... Kf8 55. Bxb3
Rxf3 $14) 55. Rxf6 (55. Bxb3 $142 $5 Rxh2 56. Rxf6 $16) 55... b2 $11 56. Rb6
Rxh2 57. Be6+ Ke7 58. Bg4 h3 59. Ka6 (59. Bf5 Kf7 $11) 59... Rh1 (59... Kd8
$142 $5 $15 {ist zu erwägen}) 60. Rxb2 $14 h2 61. Kb6 Kd6 62. Rd2+ (62. Bf5 Ke7
$11) 62... Ke7 $11 63. Rb2 1/2-1/2

[Event "LL B"]
[Site "Uttendorf"]
[Date "2005.10.22"]
[Round "?"]
[White "Halilovic, Husejin"]
[Black "Grundner, Alois"]
[Result "1/2-1/2"]
[ECO "B01"]
[WhiteElo "2210"]
[BlackElo "1863"]
[Annotator "Fritz 8 (15s)"]
[PlyCount "136"]
[TimeControl "240+2"]

{96MB, Fritz8.ctg, OEMComputer B01: Skandinavische Verteidigung} 1. e4 d5 2.
exd5 Nf6 3. d4 Nxd5 4. c4 Nb6 5. Nf3 Bg4 6. Be2 e6 7. O-O Be7 8. b3 N8d7 9. Bb2
Nf6 10. Ne5 Bxe2 11. Qxe2 O-O 12. Nd2 c5 13. Ndf3 Qc7 14. Rfd1 Rad8 15. dxc5
Bxc5 16. Rxd8 Rxd8 17. Ng5 Rf8 18. Nd3 (18. Ng4 Nxg4 19. Qxg4 h6 $16) 18...
Nbd7 $14 19. Rd1 h6 (19... Bd6 20. Nf3 $14) 20. Nf3 a6 21. Nxc5 Qxc5 22. Bd4
Qa5 23. h3 {Verhindert das Eindringen auf g4} Re8 24. Ne5 Nf8 25. Rd3 Rd8 26.
Bc3 Qc7 27. Rg3 Qd6 $2 (27... Ne8 28. Qh5 $14) 28. Nd3 (28. Nc6 $142 $1 bxc6
29. Bxf6 Qd1+ 30. Qf1 $18 Qxf1+ {[%emt 0:00:00]} 31. Kxf1 {[%eval 241,9] [%emt
0:00:02]} Rd1+ {[%emt 0:00:02]} 32. Ke2 {[%eval 228,7] [%emt 0:00:01]} Rd7 {
[%emt 0:00:20]} 33. Rxg7+ {[%eval 275,9] [%emt 0:00:05]} Kh8 {[%emt 0:00:08]}
34. g4 {[%eval 306,11] [%emt 0:00:00]}) 28... Ng6 29. Qf3 Qe7 30. Bxf6 gxf6 31.
h4 Kh7 32. h5 Nh4 33. Qe4+ Nf5 (33... f5) 34. Rf3 Rd4 35. Qe2 Qd8 36. g3 {
Nimmt Einfluß auf h4} (36. Ne1 Rd2 37. Qe4 Qb6 $11) 36... Qg8 37. Qc2 Qg4 38.
Rf4 Qxh5 39. Rxd4 Nxd4 40. Qb1 (40. Nf4+ Nxc2 41. Nxh5 Kg6 42. Nf4+ Kf5 $15)
40... Nf3+ {[%emt 0:00:00]} 41. Kg2 Qf5 42. Qd1 Ng5 43. Nf4 e5 44. Qd3 e4 45.
Qe2 (45. Qd5 Qc8 $11) 45... Nf3 46. Qe3 (46. Qd3) 46... Qe5 47. Qb6 Qa1 48.
Qxb7 Qg1+ 49. Kh3 Ng5+ 50. Kg4 Qxf2 51. Qxa6 $4 {und es geht weiter bergab} (
51. Qe7 $142 $17) 51... Qf3+ $19 52. Kf5 e3 53. c5 Qe4+ (53... Ne6 $142 {ist
der schnellste Weg} 54. Kxf6 Nxf4 55. gxf4 e2 $19) 54. Kxf6 $11 (54. Kg4 {
[%emt 0:00:00]} f5+ {[%eval -32761,2] [%emt 0:00:00]} 55. Kh4 {[%emt 0:00:04]}
Qh1+ {[%eval -32763,2] [%emt 0:00:04]} 56. Nh3 {[%emt 0:00:02]} Qxh3# {[%eval
-32765,2] [%emt 0:00:02]}) 54... Qd4+ 55. Ke7 $4 {wirft den Vorteil weg} (55.
Kf5 Qe4+ 56. Kf6 Ne6 $14) 55... Qxc5+ $4 {danach kann Schwarz alle Träume
begraben} (55... Qe5+ 56. Kf8 Qxc5+ 57. Ke8 Qe5+ 58. Kf8 Ne6+ 59. Nxe6 Qxe6 (
59... fxe6 $6 60. Qe2 $17) 60. Qd3+ f5 $19) 56. Kd7 (56. Qd6 Qb5 57. Qd3+ Qxd3
58. Nxd3 $14) 56... Qd4+ (56... Nf3 57. Qf6 Ne5+ 58. Kd8 $19) 57. Kc8 (57. Kc6
$15) 57... Qc5+ (57... Ne4 58. Qd3 Qe5 59. a4 $19) 58. Kb7 (58. Kd7 $5 $11)
58... Qe7+ (58... Ne6 59. Qd3+ Kg8 $19) 59. Kb6 $15 Qd6+ 60. Kb5 Qd2 61. Kc6
Ne4 62. Qd3 f5 63. Qc4 $4 {gibt den Vorteil aus der Hand} (63. b4 $142 $11 {
und Weiß spielt mit}) 63... Qd6+ $19 (63... Qxa2 $4 {führt zum Matt in 2} 64.
Qf7+ Kh8 65. Ng6#) (63... Nxg3 $4 {ist Matt in 2} 64. Qf7+ Kh8 65. Ng6#) 64.
Kb5 Qb8+ (64... Nxg3 $4 {Schwarz schlägt einen vergifteten Bauern} 65. Qf7+ Kh8
66. Ng6+ Qxg6 67. Qxg6 $18) 65. Ka4 (65. Ka5 $142 $5 Qd8+ 66. Ka4 Qd7+ 67. Ka3
Nxg3 68. Qa6 $17) 65... Qa7+ $19 (65... Nxg3 $4 {wird durch Matt widerlegt in 2
} 66. Qf7+ Kh8 67. Ng6#) 66. Kb4 Qb6+ $4 {danach wendet sich das Blatt} (66...
Qe7+ $142 {nun kommt Schwarz in Vorteil} 67. Ka5 Nxg3 $19) 67. Ka3 $11 Qa5+ (
67... Nxg3 $4 {vergiftet...} 68. Qf7+ Kh8 69. Ng6+ Qxg6 70. Qxg6 $18) 68. Kb2
Qd2+ (68... Nxg3 $4 {scheitert an Matt in 2} 69. Qf7+ Kh8 70. Ng6#) 1/2-1/2

[Event "LLB"]
[Site "Uttendorf"]
[Date "2005.11.05"]
[Round "?"]
[White "Grundner, Alois"]
[Black "Buchebner, Markus"]
[Result "0-1"]
[ECO "D18"]
[WhiteElo "2020"]
[BlackElo "1864"]
[Annotator "Fritz 8 (15s)"]
[PlyCount "62"]
[TimeControl "300"]

{96MB, Fritz8.ctg, OEMComputer D18: Damengambit (Slawische Verteidigung,
Hauptvariante)} 1. d4 d5 2. c4 c6 3. Nc3 Nf6 4. Nf3 dxc4 5. a4 Bf5 6. e3 e6 7.
Bxc4 Bb4 8. O-O Nbd7 9. Qe2 Bg6 10. Bd2 {letzter Buchzug} a5 11. Rac1 O-O 12.
Rfe1 Qe7 13. Bd3 Bh5 14. e4 e5 15. d5 {Weiß erobert Raum} Nc5 16. Bc2 Rad8 17.
dxc6 (17. Bg5 h6 18. Bh4 Bxc3 19. bxc3 cxd5 20. exd5 Rxd5 $15) 17... bxc6 18.
Rcd1 (18. Be3 $142 $15 {sieht noch spielbar aus}) 18... Ne6 $19 19. Be3 Nd4 $1
{entscheidet sofort} 20. Bxd4 (20. Nxd4 exd4 {Motiv: Doppelangriff}) 20... exd4
({Schlechter scheint} 20... Rxd4 21. h3 $17) 21. e5 Nd5 (21... dxc3 $5 22. Rxd8
Rxd8 23. bxc3 Bxc3 24. exf6 Qxe2 25. Rxe2 Bxf3 26. gxf3 Bxf6 27. Kf1 $19) 22.
Rxd4 (22. Nxd5 $5 {sieht gut aus} Rxd5 23. Rf1 $15) 22... Nxc3 $17 23. bxc3
Rxd4 24. cxd4 Bxe1 25. Qxe1 Qb4 (25... c5 26. d5 Bxf3 27. gxf3 Qg5+ 28. Kf1 $19
) 26. Qe4 (26. Qxb4 $142 $5 axb4 27. Nd2 $15) 26... Bg6 $19 27. Qxc6 Qb2 28.
Ne1 Qc1 29. Qc3 h6 (29... Bxc2 $5 30. Kf1 Qd1 31. Qxc2 Qxd4 $19) 30. Kf1 (30.
Qe3 Qxe3 31. fxe3 Bxc2 32. Nxc2 $17) 30... Rb8 (30... Bxc2 $142 $5 31. Qxc2 Qa1
$17) 31. Qc7 $4 {vergibt den sicheren Gewinn} (31. d5 $142 $11 {war noch
möglich}) 31... Bd3+ $3 $19 {die Krönung} (31... Bd3+ 32. Bxd3 Qxc7 $19) 0-1

[Event "LLA"]
[Site "Uttendorf"]
[Date "2005.11.12"]
[Round "?"]
[White "Engelsberger, Benno"]
[Black "Grundner, Alois"]
[Result "0-1"]
[ECO "A00"]
[WhiteElo "1744"]
[BlackElo "1863"]
[Annotator "Fritz 8 (15s)"]
[PlyCount "100"]
[TimeControl "300"]

{96MB, Fritz8.ctg, OEMComputer A00: Unregelmäßige Eröffnungen} 1. Nc3 d5 2. e4
d4 3. Nce2 e5 4. Ng3 Nf6 5. Bc4 {letzter Buchzug} Be7 6. h3 {Sichert g4} c5 7.
Nf3 Nc6 8. a3 {Punkt b4} Qc7 9. d3 b5 10. Ba2 O-O 11. Bg5 (11. O-O Rb8 $11)
11... h6 12. Bxf6 Bxf6 (12... gxf6 13. Nh4 Kh7 14. Nhf5 Bxf5 15. Nxf5 $18 (15.
exf5 $6 Qa5+ 16. Kf1 Rab8 $11)) 13. Nh5 Qe7 (13... Bd8 14. O-O $15) 14. O-O Be6
15. Bxe6 Qxe6 16. Ng3 Kh7 17. a4 (17. Qe2 g6 $11) 17... a6 $15 18. Nd2 c4 {Der
Standardhebel} (18... g6 19. Qe2 $15) 19. f4 (19. Qe2 cxd3 20. cxd3 g6 $11)
19... exf4 20. Rxf4 (20. Nh5 Bg5 $15) 20... Bg5 21. Rf5 Ne7 22. Rf1 cxd3 (22...
Be3+ 23. Kh1 $15) 23. cxd3 f5 (23... Be3+ 24. Kh1 $15) 24. Nf3 (24. axb5 Qe5
25. Nxf5 Nxf5 26. exf5 Qe3+ 27. Kh1 Qxd2 28. Qxd2 Bxd2 29. bxa6 $17) 24... Be3+
{Läßt den Läufer von der Leine} 25. Kh1 Qg6 26. Qe1 f4 27. Ne2 {[%cal Re2d4,
Rf3d4,Ge3d4] Nimmt den Isolani ins Visier} Nc6 28. Nh4 Qe6 29. axb5 (29. Nf5 b4
$15) 29... axb5 30. Rxa8 Rxa8 31. Nxf4 (31. Nf5 $5 {kam sehr in Betracht} Ra2
32. Nxf4 Bxf4 33. Rxf4 $17) 31... Bxf4 $19 32. Rxf4 g5 33. Rf5 gxh4 34. Qxh4
Nd8 (34... Qd6 $142 $5 35. g3 Rf8 $19) 35. Rf6 (35. Qf4 $5 {kommt in Betracht}
Qg6 36. Rf6 $11) 35... Ra1+ $15 36. Kh2 Qe5+ 37. Qf4 $2 (37. g3 $142 {und Weiß
kann noch kämpfen} Qg5 38. Qxg5 hxg5 39. Rd6 $15) 37... Qxf4+ $19 38. Rxf4 Rd1
39. Rf5 Rxd3 40. Rxb5 Re3 41. Rd5 Ne6 42. e5 (42. b4 Rxe4 43. b5 Re2 $19) 42...
Re2 43. b4 Rxg2+ $1 {Zerstörung der Bauerndeckung} 44. Kh1 $2 (44. Kxg2 {Motiv:
Hinlenkung-> g2} Nf4+ {Motiv: Doppelangriff}) 44... Rb2 45. b5 (45. Rd6 {ist
noch eine dünne Chance} Ng5 46. Kg1 Nxh3+ 47. Kf1 $19) 45... Kg6 46. Rd6 Kf5
47. b6 (47. Kg1 {hilft auch nicht mehr} Kxe5 48. Rd7 Nf4 $19) 47... Kxe5 48.
Rd7 Rxb6 49. Kg2 Rd6 (49... Nf4+ {und Schwarz hätte es noch leichter} 50. Kf2
Nxh3+ 51. Kf3 Rb3+ 52. Ke2 Nf4+ 53. Kd1 $19) 50. Rh7 (50. Rxd6 Kxd6 51. Kf2 $19
) 50... d3 (50... d3 51. Rb7 d2 $19) 0-1

[Event "LLB"]
[Site "Uttendorf"]
[Date "2005.11.19"]
[Round "?"]
[White "Werndl, Erich"]
[Black "Grundner, Alois"]
[Result "0-1"]
[ECO "B01"]
[WhiteElo "2114"]
[BlackElo "1863"]
[Annotator "Fritz 8 (15s)"]
[PlyCount "36"]
[TimeControl "300"]

{96MB, Fritz8.ctg, OEMComputer B01: Skandinavische Verteidigung} 1. e4 d5 2.
Nc3 dxe4 3. Nxe4 e5 4. Bc4 {letzter Buchzug} Bf5 5. Qe2 (5. Qf3 Qc8 $16) 5...
Nd7 6. Nf3 Bd6 7. d4 Qe7 8. O-O O-O-O 9. Nxd6+ cxd6 10. dxe5 dxe5 11. Bg5 f6
12. Be3 Kb8 13. Rfd1 Nh6 14. Bxh6 gxh6 15. Nd4 Bg6 16. a4 Nb6 17. Bb3 Nc8 18.
a5 $4 {gibt den Vorteil aus der Hand.} (18. Nb5 $142 $14 {bringt noch Rettung})
18... exd4 (18... exd4 19. Qf3 Rhe8 $19) 0-1

[Event "LLA"]
[Site "Uttendorf"]
[Date "2005.11.27"]
[Round "?"]
[White "Grundner, Alois"]
[Black "Huber, Josef"]
[Result "1/2-1/2"]
[ECO "A50"]
[WhiteElo "1863"]
[BlackElo "1851"]
[Annotator "Fritz 8 (15s)"]
[PlyCount "74"]
[TimeControl "240+2"]

{96MB, Fritz8.ctg, OEMComputer A50: Damenindisch (ohne e7-e6)} 1. d4 Nf6 2. c4
Nc6 3. Nf3 e6 4. Nc3 Bb4 5. Bg5 h6 6. Bh4 g5 7. Bg3 Ne4 8. Qc2 {letzter Buchzug
} Nxg3 9. hxg3 ({Schlechter ist} 9. fxg3 g4 10. Ne5 Nxd4 $17) 9... Qf6 (9... g4
$5 {ist bedenkenswert} 10. a3 Be7 $11) 10. e3 $14 d6 {Sichert e5} 11. Bd3 e5
12. d5 {Weiß erobert Raum} Bxc3+ 13. Qxc3 Ne7 14. Nd2 Bf5 15. e4 Bd7 16. c5 {
Nimzowitsch: Bauernketten von der Basis aufrollen} Kf8 $2 (16... dxc5 17. Qxc5
c6 18. Nc4 $16) 17. O-O (17. cxd6 $142 $5 Qxd6 18. Nc4 Qc5 19. Qxe5 Ng6 $18)
17... Rc8 (17... dxc5 18. f4 gxf4 19. gxf4 $16) 18. f4 (18. cxd6 cxd6 19. Qa5
Qg6 $18) 18... Ng6 (18... gxf4 $5 19. gxf4 Rg8 $16) 19. f5 $18 Ne7 20. Nc4 Bb5
$2 (20... h5 21. cxd6 cxd6 22. Qa3 $16) 21. Nxe5 $4 {gibt den Vorteil aus der
Hand} (21. Ne3 $142 {ließe Schwarz keine Chance} Bxd3 22. Ng4 (22. Qxd3 $6 h5
$16) 22... Bxf1 23. Nxf6 $18) 21... dxe5 22. Bxb5 c6 23. dxc6 Nxc6 24. Bxc6
Qxc6 25. Qxe5 f6 26. Qd6+ Qxd6 27. cxd6 Ke8 28. Rad1 Kd7 29. Rf2 Rc6 30. Rfd2
Re8 31. Rd4 Rc2 32. Rb4 b6 33. Kf1 (33. Rd3 h5 $16) 33... Rec8 34. Rdd4 (34.
Rb3 h5 $14) 34... R8c6 35. a3 Rxd6 36. g4 Ke7 37. b3 Rb2 1/2-1/2

[Event "LLB"]
[Site "Uttendorf"]
[Date "2005.12.03"]
[Round "?"]
[White "Junger, Gerald"]
[Black "Grundner, Alois"]
[Result "1/2-1/2"]
[ECO "A18"]
[WhiteElo "1898"]
[BlackElo "1863"]
[Annotator "Fritz 8 (15s)"]
[PlyCount "65"]
[TimeControl "240+2"]

{96MB, Fritz8.ctg, OEMComputer A18: Englische Eröffnung} 1. c4 Nf6 2. Nc3 e6 3.
e4 d5 4. cxd5 exd5 5. e5 d4 6. exf6 dxc3 {letzter Buchzug} 7. bxc3 Qxf6 8. d4
Be7 9. Nf3 O-O 10. Be2 c6 {Verhindert das Eindringen auf b5} (10... Qg6 11. O-O
$11) 11. O-O Bg4 (11... h6 12. Re1 $14) 12. h3 Bxf3 13. Bxf3 Nd7 14. Qb3 b6 15.
Bb2 Rac8 16. Rfe1 Bd6 17. Re4 Bb8 (17... Qf5 18. Re3 Nf6 19. c4 $14) 18. Ba3 c5
19. Rae1 g6 {Kontrolliert h5} (19... Bd6 20. Bc1 $14) 20. Re7 (20. Qa4 $5 Qd6
21. g3 $16) 20... Qf4 $14 21. Bd5 (21. Rxd7 $2 {ist naheliegend und schlecht}
Qh2+ 22. Kf1 Qh1+ 23. Ke2 Rce8+ 24. Kd3 Rxe1 $19) 21... Rcd8 (21... Qh2+ $5 22.
Kf1 Nf6 23. dxc5 Rcd8 $11) 22. g3 $16 Qf5 23. Kg2 Bd6 24. R7e3 Nf6 25. Be4 (25.
Bc4 Rde8 $14) 25... Qc8 26. dxc5 Bxc5 27. Bxc5 Qxc5 28. Bf3 Kg7 29. Re5 Qc7 30.
Re7 Rd7 31. Rxd7 Qxd7 32. Rd1 Qc7 33. Rc1 1/2-1/2

[Event "LL B"]
[Site "Uttendorf"]
[Date "2005.12.16"]
[Round "?"]
[White "Maier, Georg"]
[Black "Grundner, Alois"]
[Result "1/2-1/2"]
[ECO "D36"]
[WhiteElo "2069"]
[BlackElo "1863"]
[Annotator "Fritz 8 (15s)"]
[PlyCount "80"]
[TimeControl "240+2"]

{96MB, Fritz8.ctg, OEMComputer D36: Damengambit (Abtauschvariante)} 1. d4 Nf6
2. c4 e6 3. Nc3 d5 4. cxd5 exd5 5. Bg5 Nbd7 6. e3 c6 7. Qc2 Be7 8. Bd3 O-O 9.
Nge2 Re8 10. O-O Nf8 11. Rab1 Ne4 12. Bxe7 Qxe7 13. Bxe4 dxe4 14. Ng3 f5 15.
Rfd1 Be6 {[%cal Yc4d3,Ye6c4,Yc8e6] Plant Lc8-e6-c4-d3. letzter Buchzug} 16. d5
cxd5 17. Nxd5 Qf7 18. Nc3 Bc4 19. Qa4 Bd3 {Läßt den Läufer von der Leine} 20.
Rbc1 a6 {Überdeckt b5} 21. Qa5 g6 {Befestigt h5} (21... b5 22. f3 $11) 22. Qd5
(22. f3 Nd7 $11) 22... Rad8 23. Qxf7+ (23. Qa5 Qf6 $11) 23... Kxf7 24. Na4 Ne6
25. Nc5 Nxc5 26. Rxc5 Rc8 27. Rdc1 Rxc5 28. Rxc5 Re7 29. h4 Rd7 30. h5 Bb5 31.
Kh2 Bc6 32. Rc2 Bb5 33. b3 (33. Rc5 Kf6 $15) 33... Kg7 34. a4 Bd3 35. Rc1 Re7
36. Rc8 Rd7 37. Kh3 Re7 38. Kh4 Kf6 39. Rf8+ Kg7 40. Rc8 Kf6 1/2-1/2

[Event "LLB"]
[Site "?"]
[Date "2007.01.27"]
[Round "?"]
[White "Grundner, Alois"]
[Black "Huch, Rainer"]
[Result "1/2-1/2"]
[ECO "D15"]
[WhiteElo "1931"]
[BlackElo "2256"]
[Annotator ",Lois"]
[PlyCount "129"]
[TimeControl "300"]

{37MB, LOIS-LXIC8KMRWW} 1. d4 d5 2. c4 c6 3. Nf3 Nf6 4. Nc3 a6 5. e3 b5 6. cxd5
cxd5 7. a3 Bg4 8. Be2 e6 9. O-O Bd6 10. Ne5 Bxe2 11. Qxe2 O-O 12. b4 Nbd7 13.
f4 Rc8 14. Bb2 Nb6 15. Nd3 Nc4 16. Nc5 Bxc5 17. bxc5 Qd7 18. Rfb1 Ra8 19. Bc1
Rfb8 20. Bd2 a5 21. Be1 Qc6 22. h3 b4 23. axb4 Rxb4 ({0.53 Fritz 8:} 23... axb4
{[%eval -19,11]}) 24. Bf2 ({-0.38 Fritz 8:} 24. Rxa5 Rxb1 25. Rxa8+ Qxa8 26.
Nxb1 Kf8 27. Nc3 Qa1 {[%eval 53,11]}) (24. Nxd5 {[%emt 0:00:00]} exd5 {[%emt 0:
00:05]} 25. Bxb4 {[%emt 0:00:04]} axb4 {[%emt 0:00:00]} 26. Rxa8+ {[%emt 0:00:
02]} Qxa8 {[%emt 0:00:00]} 27. Rxb4 {[%emt 0:00:02]} h6 {[%emt 0:00:04]} 28.
Rxc4 {[%emt 0:00:07]} dxc4 {[%emt 0:00:04]} 29. Qxc4 {[%emt 0:00:04]} Nd5 {
[%emt 0:00:17]} 30. Kf2 {[%emt 0:00:06]} Qc6 {[%emt 0:00:11]} 31. Qb3 {[%emt 0:
00:06]} Qe6 {[%emt 0:00:07]} 32. Qb8+ {[%emt 0:00:08]} Kh7 {[%emt 0:00:02]} 33.
Qe5 {[%emt 0:00:12]} Qxe5 {[%emt 0:00:06]} 34. fxe5 {[%emt 0:00:01]} Kg6 {
[%emt 0:00:05]} 35. Kf3 {[%emt 0:00:03]} Kf5 {[%emt 0:00:02]}) 24... Rab8 25.
Qa2 g6 26. Qc2 Rb2 27. Qc1 R2b4 28. Qc2 Ne8 29. Kh2 ({-1.78 Fritz 8:} 29. Rxb4
axb4 30. Qb3 Qc7 31. Ne2 Nf6 32. Ra4 Na5 33. Qb2 Nc6 {[%eval -25,11]}) 29...
Ng7 ({-0.31 Fritz 8:} 29... Rxb1 30. Rxb1 Na3 31. Qa2 Nxb1 32. Nxb1 a4 33. Nc3
Ra8 34. Qa3 {[%eval -178,11]}) 30. Nd1 R8b7 31. Bg1 ({-4.22 Fritz 8:} 31. Rxb4
axb4 32. Nb2 b3 33. Qc1 Rb8 34. Kg1 Nf5 35. g4 {[%eval -9,12]}) 31... f6 ({-0.
25 Fritz 8:} 31... Rxb1 32. Rxb1 Na3 33. Qa2 Nxb1 34. Qxa5 Nf5 35. Qd8+ Kg7 {
[%eval -422,11]}) 32. Nc3 Nf5 33. Qc1 Rb3 ({-0.12 Fritz 8:} 33... g5 34. Rxb4
Rxb4 35. Bf2 gxf4 36. exf4 {[%eval -78,9]}) 34. Bf2 ({-0.78 Fritz 8:} 34. Rxb3
Rxb3 35. Ne4 Nfxe3 36. Nxf6+ Kg7 37. Bxe3 Kxf6 38. Bf2 {[%eval -12,11]}) 34...
Rb2 35. Bg1 Nh4 36. Rxb2 Rxb2 37. Ra2 Nf3+ 38. Kh1 Rxa2 39. Nxa2 Nfd2 40. Nc3
Qb7 41. Qa1 Qb4 42. Qa4 Qxa4 (42... Qxc3 {[%emt 0:00:00]} 43. Qe8+ {[%emt 0:00:
05]} Kg7 {[%emt 0:00:03]} 44. Qe7+ {[%emt 0:00:01]} Kh6 {[%emt 0:00:01]} 45. g4
{[%emt 0:00:00]} g5 {[%emt 0:00:19]} 46. Qxf6# {[%emt 0:00:00]}) 43. Nxa4 Kf7
44. g4 Ke7 45. Kg2 Kd7 46. Kf2 Kc6 47. Ke2 Kb5 48. Nc3+ Kb4 49. Kd3 Kb3 50. f5
exf5 51. gxf5 ({-0.75 Fritz 8:} 51. Nxd5 {[%eval 56,11]} a4 {[%emt 0:00:08]}
52. c6 {[%emt 0:00:08]} a3 {[%emt 0:00:15]} 53. c7 {[%emt 0:00:11]} Nd6 {[%emt
0:00:16]} 54. Nc3 {[%emt 0:00:06]} N2e4 {[%emt 0:00:02]} 55. Bh2 {[%emt 0:00:
12]} Nc8 {[%emt 0:00:02]} 56. Na2 {[%emt 0:00:06]} Kxa2 {[%emt 0:00:02]} 57.
Kc2 {[%emt 0:00:13]} fxg4 {[%emt 0:00:21]} 58. hxg4 {[%emt 0:00:04]} h5 {[%emt
0:00:02]} 59. gxh5 {[%emt 0:00:03]} gxh5 {[%emt 0:00:03]} 60. d5 {[%emt 0:00:
01]} Ned6 {[%emt 0:00:14]} 61. Bxd6 {[%emt 0:00:05]}) 51... gxf5 ({-0.06 Fritz
8:} 51... Nf3 52. Bf2 Nb2+ 53. Ke2 Nxd4+ 54. exd4 Kxc3 55. c6 Nc4 56. c7 Nd6
57. Be1+ Kxd4 58. Bxa5 gxf5 {[%eval -75,13]}) 52. Nxd5 a4 53. Nc3 ({-1.91
Fritz 8:} 53. c6 a3 54. c7 Nd6 55. Bh2 Nc8 56. Nc3 Ne4 57. Ne2 {[%eval -6,13]})
53... Ne4 ({1.97 Fritz 8:} 53... a3 54. Ne2 Kb2 55. Nc3 Ne4 56. Kxc4 Nxc3 57.
c6 a2 {[%eval -191,12]}) 54. Nxa4 Kb4 55. Bh2 ({0.72 Fritz 8:} 55. Nb6 Nb2+ 56.
Kc2 Nc4 57. Nxc4 Kxc4 58. c6 Kd5 59. c7 Nd6 60. Bh2 Nc8 61. Bf4 {[%eval 213,14]
}) 55... Nf2+ ({1.63 Fritz 8:} 55... Kb5 56. Bc7 Nf2+ 57. Ke2 Nxh3 58. Nb6 Ng5
59. Nc8 Kc6 60. Bf4 Ne4 {[%eval 72,13]}) 56. Ke2 Nxh3 57. Nb6 Na5 58. Kf3 Nc6
59. Nd5+ Kc4 60. Nxf6 Ng5+ ({3.13 Fritz 8:} 60... h6 61. Ng8 h5 62. Kg3 Ng5 63.
Kf4 Ne4 64. Kxf5 Nc3 {[%eval 219,13]}) 61. Kf4 Ne6+ 62. Kxf5 Nexd4+ 63. exd4
Nxd4+ 64. Kg4 ({0.94 Fritz 8:} 64. Ke5 h6 (64... Kxc5 {[%emt 0:00:00]} 65. Bg1
{[%emt 0:00:02]} Kc6 {[%emt 0:00:13]} 66. Kxd4 {[%emt 0:00:04]} h6 {[%emt 0:00:
12]} 67. Be3 {[%emt 0:00:02]} h5 {[%emt 0:00:07]} 68. Nxh5 {[%emt 0:00:03]} Kb6
{[%emt 0:00:08]} 69. Nf6 {[%emt 0:00:10]} Kc6 {[%emt 0:00:10]} 70. Ne4 {[%emt
0:00:02]} Kb7 {[%emt 0:00:08]} 71. Kc5 {[%emt 0:00:05]} Kc7 {[%emt 0:00:13]}
72. Nf6 {[%emt 0:04:53]} Kb7 {[%emt 0:00:00]} 73. Bf4 {[%emt 0:00:03]} Ka6 {
[%emt 0:00:11]} 74. Nd7 {[%emt 0:00:14]} Ka7 {[%emt 0:00:12]} 75. Nb6 {[%emt 0:
00:34]} Kb7 {[%emt 0:00:06]} 76. Kb5 {[%emt 0:00:01]} Ka7 {[%emt 0:00:02]} 77.
Kc6 {[%emt 0:00:01]} Ka6 {[%emt 0:00:03]} 78. Nd5 {[%emt 0:00:06]} Ka7 {[%emt
0:00:07]} 79. Bc7 {[%emt 0:00:10]} Ka8 {[%emt 0:00:07]} 80. Nb6+ {[%emt 0:00:
04]} Ka7 {[%emt 0:00:01]} 81. Bd6 {[%emt 0:00:01]} Ka6 {[%emt 0:00:03]} 82. Bb8
{[%emt 0:00:00]} Ka5 {[%emt 0:00:00]} 83. Nd5 {[%emt 0:00:02]} (83. Nd5 {[%emt
0:00:00]} Ka4 {[%emt 0:00:04]} 84. Kc5 {[%emt 0:00:00]} Kb3 {[%emt 0:00:06]}
85. Nb4 {[%emt 0:00:00]} Kb2 {[%emt 0:00:13]} 86. Bf4 {[%emt 0:00:11]} Kc3 {
[%emt 0:00:06]} 87. Bg5 {[%emt 0:00:06]} Kb3 {[%emt 0:00:11]} 88. Bf6 {[%emt 0:
00:05]} Ka4 {[%emt 0:00:00]} 89. Kc4 {[%emt 0:00:02]} Ka5 {[%emt 0:00:04]} 90.
Bd8+ {[%emt 0:00:01]} Ka4 {[%emt 0:00:05]} 91. Nd3 {[%emt 0:00:02]} Ka3 {[%emt
0:00:01]} 92. Bc7 {[%emt 0:00:27]} Ka4 {[%emt 0:00:01]} 93. Nb2+ {[%emt 0:00:
02]} Ka3 {[%emt 0:00:01]} 94. Kc3 {[%emt 0:00:02]} Ka2 {[%emt 0:00:02]} 95. Kc2
{[%emt 0:00:07]} Ka1 {[%emt 0:00:07]} 96. Bd6 {[%emt 0:00:03]} Ka2 {[%emt 0:00:
00]} 97. Nd3 {[%emt 0:00:06]} Ka1 {[%emt 0:00:06]} 98. Bc5 {[%emt 0:00:03]} Ka2
{[%emt 0:00:00]} 99. Nc1+ {[%emt 0:00:01]} Ka1 {[%emt 0:00:01]} 100. Bd4# {
[%emt 0:00:01]}) 83... Ka4 {[%emt 0:00:05]} 84. Be5 {[%emt 0:00:28]} Kb3 {
[%emt 0:00:07]}) 65. Bg1 Nc6+ 66. Kd6 Kb5 67. Nd5 Na5 68. Nc7+ Kb4 69. c6 Nc4+
70. Ke7 Ka5 {[%eval 522,14]} 71. Ne8 {[%emt 0:00:02]} Nb6 {[%emt 0:00:07]} 72.
c7 {[%emt 0:00:02]} Nd5+ {[%emt 0:00:16]} 73. Kf7 {[%emt 0:00:02]} Nb6 {[%emt
0:00:08]} 74. Bxb6+ {[%emt 0:00:06]}) 64... Kxc5 65. Nxh7 1/2-1/2